bitfinex-derivatives/quotes_SOLF0:USTF0_20250821
["timestamp","ask_amount","ask_price","bid_price","bid_amount"]
[1755790767801,2.9,183.36,183.27,2.91]
[1755790768507,2.9,183.36,183.29,5.4564]
[1755790769003,2.9,183.36,183.27,2.91]
[1755790771406,4.92317931,183.35,183.22,7.83317931]
[1755790771614,2.9,183.34,183.22,2.91]
[1755790772705,4.92317931,183.32,183.22,2.91]
[1755790772910,2.9,183.31,183.22,2.91]
[1755790773506,4.92317931,183.34,183.22,2.91]
[1755790773910,2.9,183.33,183.22,2.91]
[1755790774108,2.9,183.33,183.22,8.3685]
[1755790774305,2.9,183.33,183.22,2.91]
[1755790774713,2.9,183.3,183.22,2.91]
[1755790774914,2.9,183.3,183.19,12.42669]
[1755790775216,2.9,183.3,183.21,5.4587]
[1755790775417,4.92317931,183.28,183.19,12.42669]
[1755790775714,2.9,183.22,183.19,12.42669]
[1755790776717,2.9,183.21,183.19,12.42669]
[1755790776916,5.96823412,183.31,183.19,12.42669]
[1755790777219,2.9,183.23,183.19,12.42669]
[1755790778013,4.92317931,183.24,183.19,12.42669]
[1755790778317,7.82317931,183.27,183.19,12.42669]
[1755790778812,2.9,183.27,183.19,12.42669]
[1755790779012,4.92317931,183.3,183.22,5.4583]
[1755790779212,4.92317931,183.3,183.22,8.3683]
[1755790779712,4.92317931,183.3,183.22,2.91]
[1755790779915,2.9,183.32,183.22,2.91]
[1755790780417,2.9,183.32,183.2,4.92317931]
[1755790780615,2.9,183.32,183.23,2.91]
[1755790781617,7.82317931,183.36,183.23,2.91]
[1755790781920,7.82317931,183.36,183.26,5.4571]
[1755790782119,7.82317931,183.36,183.23,2.91]
[1755790782423,7.82317931,183.36,183.26,5.4571]
[1755790783020,7.82317931,183.36,183.27,5.4569]
[1755790783224,7.82317931,183.36,183.27,2.91]
[1755790783522,7.82317931,183.36,183.28,5.4566]
[1755790784024,7.82317931,183.36,183.27,2.91]
[1755790784714,2.9,183.36,183.27,2.91]
[1755790785113,4.92317931,183.39,183.27,2.91]
[1755790785526,2.9,183.38,183.27,2.91]
[1755790785726,4.92317931,183.36,183.27,2.91]
[1755790785925,2.9,183.35,183.27,2.91]
[1755790790833,4.92317931,183.33,183.23,2.91]
[1755790791334,4.92317931,183.33,183.24,5.4578]
[1755790791526,4.92317931,183.33,183.23,2.91]
[1755790791928,4.92317931,183.33,183.23,8.368]
[1755790792327,4.92317931,183.33,183.24,5.4579]
[1755790794634,4.92317931,183.33,183.25,5.4576]
[1755790794836,2.9,183.35,183.26,2.99]
[1755790795234,2.9,183.35,183.26,8.4472]
[1755790795437,2.9,183.35,183.26,2.99]
[1755790795831,2.9,183.35,183.26,8.4473]
[1755790796037,2.9,183.35,183.26,2.99]
[1755790797534,2.97,183.32,183.21,2.99]
[1755790798539,4.92317931,183.3,183.21,2.99]
[1755790799140,4.92317931,183.3,183.21,8.4486]
[1755790799442,2.97,183.32,183.21,2.99]
[1755790799841,2.97,183.36,183.25,2.99]
[1755790800241,2.97,183.36,183.28,5.4567]
[1755790800440,2.97,183.36,183.29,2.99]
[1755790800643,2.97,183.36,183.24,4.92317931]
[1755790800842,2.97,183.36,183.27,5.4569]
[1755790801237,2.97,183.36,183.25,2.99]
[1755790801544,4.92317931,183.35,183.25,2.99]
[1755790801842,2.97,183.34,183.25,2.99]
[1755790802043,7.89317931,183.38,183.25,2.99]
[1755790802337,2.97,183.37,183.25,2.99]
[1755790802736,2.97,183.34,183.25,2.99]
[1755790802936,7.89317931,183.38,183.28,2.99]
[1755790803542,2.97,183.34,183.24,2.99]
[1755790804043,2.97,183.34,183.25,5.4573]
[1755790804235,2.97,183.34,183.24,2.99]
[1755790804842,2.97,183.34,183.2,2.99]
[1755790804843,4.92317931,183.32,183.2,2.99]
[1755790805242,2.97,183.31,183.2,8.449]
[1755790805434,2.97,183.31,183.2,2.99]
[1755790805635,9.0055172,183.41,183.19,12.42669]
[1755790805636,2.97,183.36,183.24,2.99]
[1755790806244,2.97,183.36,183.27,5.4569]
[1755790806444,2.97,183.36,183.26,4.92317931]
[1755790806639,2.97,183.36,183.27,2.99]
[1755790806843,2.97,183.36,183.29,5.4562]
[1755790807045,2.97,183.4,183.3,2.99]
[1755790807439,2.97,183.4,183.3,8.446]
[1755790807741,2.97,183.4,183.3,2.99]
[1755790807944,2.97,183.4,183.3,8.446]
[1755790808346,2.97,183.4,183.3,2.99]
[1755790808545,2.97,183.4,183.3,8.4461]
[1755790808747,2.97,183.4,183.3,7.91317931]
[1755790809244,2.97,183.4,183.31,5.4556]
[1755790809434,2.97,183.4,183.3,7.91317931]
[1755790809638,2.97,183.4,183.3,13.36917931]
[1755790809840,2.97,183.4,183.3,7.91317931]
[1755790810036,2.97,183.4,183.3,4.92317931]
[1755790810346,118.4024312,183.43,183.3,4.92317931]
[1755790810347,118.4024312,183.43,183.31,2.99]
[1755790810844,2.97,183.42,183.31,2.99]
[1755790811043,2.97,183.4,183.27,2.99]
[1755790811448,2.97,183.4,183.29,5.4562]
[1755790811646,2.97,183.4,183.27,2.99]
[1755790812052,2.97,183.4,183.28,5.4567]
[1755790812654,2.97,183.4,183.29,5.4564]
[1755790813152,2.97,183.4,183.28,5.4566]
[1755790814149,119.3516947,183.43,183.27,2.99]
[1755790814150,4.92317931,183.38,183.27,2.99]
[1755790814354,2.97,183.37,183.27,2.99]
[1755790814855,2.97,183.37,183.23,2.99]
[1755790815354,2.97,183.34,183.23,2.99]
[1755790815656,2.97,183.31,183.23,2.99]
[1755790816048,2.97,183.31,183.19,12.42669]
[1755790816352,2.97,183.28,183.19,12.42669]
[1755790816558,2.97,183.25,183.19,12.42669]
[1755790822161,7.89317931,183.25,183.19,12.42669]
[1755790822653,2.85,183.29,183.19,12.42669]
[1755790822858,2.85,183.29,183.2,2.89]
[1755790823358,2.85,183.29,183.2,8.349]
[1755790823558,4.92317931,183.28,183.2,2.89]
[1755790824255,2.85,183.27,183.19,15.31669]
[1755790826161,2.85,183.27,183.19,12.42669]
[1755790826355,4.92317931,183.25,183.19,12.42669]
[1755790827358,2.85,183.24,183.19,12.42669]
[1755790827558,2.85,183.23,183.19,12.42669]
[1755790827752,4.92317931,183.25,183.19,12.42669]
[1755790827962,2.85,183.21,183.19,12.42669]
[1755790828163,4.92317931,183.25,183.19,12.42669]
[1755790828363,7.77317931,183.25,183.19,12.42669]
[1755790829154,4.92317931,183.28,183.19,15.31669]
[1755790829559,2.85,183.29,183.19,15.31669]
[1755790829755,4.92317931,183.34,183.2,2.89]
[1755790829959,4.92317931,183.34,183.22,8.3485]
[1755790830160,4.92317931,183.34,183.23,2.89]
[1755790830564,4.92317931,183.34,183.23,8.3482]
[1755790830764,4.92317931,183.34,183.23,2.89]
[1755790830965,2.85,183.36,183.25,5.4574]
[1755790831269,2.85,183.36,183.26,2.89]
[1755790831859,4.92317931,183.37,183.2,2.89]
[1755790831860,4.92317931,183.31,183.2,2.89]
[1755790832055,4.92317931,183.31,183.2,8.349]
[1755790832261,2.85,183.3,183.2,2.89]
[1755790832856,4.92317931,183.28,183.2,2.89]
[1755790833268,4.92317931,183.25,183.19,12.42669]
[1755790834263,2.85,183.27,183.19,12.42669]
[1755790834464,2.85,183.31,183.2,2.89]
[1755790834667,4.92317931,183.35,183.23,5.458]
[1755790834868,4.92317931,183.35,183.24,2.89]
[1755790835563,2.85,183.36,183.24,2.89]
[1755790835767,2.85,183.36,183.25,5.4574]
[1755790836263,2.85,183.36,183.24,2.89]
[1755790836469,4.92317931,183.35,183.24,2.89]
[1755790838466,2.85,183.36,183.24,2.89]
[1755790839867,2.85,183.36,183.25,5.4574]
[1755790840069,2.85,183.36,183.24,2.89]
[1755790840378,4.92317931,183.4,183.3,3.43]
[1755790840672,4.92317931,183.4,183.3,2.89]
[1755790840875,4.92317931,183.4,183.31,5.4556]
[1755790841077,2.85,183.42,183.31,5.4556]
[1755790841372,118.4024312,183.43,183.31,2.89]
[1755790841769,7.77317931,183.51,183.35,2.89]
[1755790842069,5.98499279,183.54,183.35,2.89]
[1755790842070,4.92317931,183.45,183.35,2.89]
[1755790842277,2.85,183.44,183.35,2.89]
[1755790842470,2.85,183.44,183.31,4.92317931]
[1755790842777,2.85,183.44,183.31,2.89]
[1755790843170,4.92317931,183.42,183.31,2.89]
[1755790843576,2.85,183.44,183.31,2.89]
[1755790844072,2.85,183.44,183.33,5.4552]
[1755790844671,2.85,183.44,183.31,2.89]
[1755790845178,2.85,183.44,183.33,5.4552]
[1755790845377,2.85,183.44,183.31,2.89]
[1755790845678,2.85,183.44,183.32,5.4553]
[1755790846569,2.85,183.44,183.33,5.4552]
[1755790846767,2.85,183.44,183.31,2.89]
[1755790846968,2.85,183.44,183.36,2.89]
[1755790847372,7.77317931,183.48,183.36,2.89]
[1755790847974,7.77317931,183.48,183.37,5.454]
[1755790848379,7.77317931,183.48,183.36,2.89]
[1755790848679,2.85,183.48,183.36,2.89]
[1755790849077,2.85,183.48,183.38,5.4535]
[1755790849276,2.85,183.48,183.36,2.89]
[1755790849978,2.85,183.46,183.36,2.89]
[1755790850577,4.92317931,183.44,183.36,2.89]
[1755790850781,2.85,183.43,183.36,2.89]
[1755790850976,2.85,183.43,183.32,7.81317931]
[1755790851188,2.85,183.43,183.32,2.89]
[1755790851685,0.54,183.4,183.32,2.89]
[1755790851985,3.39,183.4,183.32,2.89]
[1755790852582,3.39,183.4,183.28,369.59]
[1755790852780,3.39,183.4,183.28,375.0467]
[1755790853178,4.92317931,183.38,183.28,369.59]
[1755790853385,2.79,183.37,183.28,369.59]
[1755790854983,2.79,183.37,183.28,2.89]
[1755790856987,2.79,183.37,183.24,141.74]
[1755790857184,2.79,183.37,183.25,5.4575]
[1755790857385,2.79,183.37,183.25,2.82]
[1755790857786,2.79,183.37,183.27,5.4567]
[1755790858088,2.79,183.37,183.28,2.82]
[1755790858996,7.71317931,183.41,183.3,2.82]
[1755790859398,2.79,183.41,183.3,2.82]
[1755790859997,2.79,183.41,183.31,5.4557]
[1755790860193,2.79,183.41,183.32,2.82]
[1755790860400,2.79,183.41,183.32,8.2754]
[1755790860702,2.79,183.41,183.32,2.82]
[1755790861898,7.71317931,183.41,183.32,2.82]
[1755790862405,2.79,183.45,183.34,2.82]
[1755790863907,2.79,183.43,183.34,2.82]
[1755790864903,2.79,183.43,183.3,2.82]
[1755790865102,4.92317931,183.41,183.3,2.82]
[1755790865301,2.79,183.43,183.3,2.82]
[1755790865903,2.79,183.43,183.3,7.74317931]
[1755790866103,2.79,183.43,183.31,2.82]
[1755790866297,2.79,183.43,183.34,5.4548]
[1755790866501,2.79,183.43,183.31,2.82]
[1755790866898,2.79,183.43,183.32,2.82]
[1755790867304,2.79,183.43,183.33,4.92317931]
[1755790867505,2.79,183.43,183.35,5.4544]
[1755790868908,2.79,183.43,183.34,8.2749]
[1755790869402,2.79,183.43,183.34,2.82]
[1755790870007,2.79,183.43,183.35,5.4546]
[1755790870207,2.79,183.43,183.34,2.82]
[1755790870605,4.92317931,183.47,183.36,2.82]
[1755790870910,7.71317931,183.47,183.36,2.82]
[1755790871109,7.71317931,183.47,183.36,8.2741]
[1755790871411,7.71317931,183.47,183.36,2.82]
[1755790871802,4.92317931,183.47,183.36,2.82]
[1755790872007,2.79,183.46,183.33,2.82]
[1755790872412,2.79,183.46,183.33,8.2752]
[1755790872909,2.79,183.46,183.34,5.4549]
[1755790873110,2.79,183.46,183.33,2.82]
[1755790873506,2.79,183.46,183.34,5.4547]
[1755790873712,2.79,183.46,183.33,2.82]
[1755790874212,2.79,183.43,183.33,2.82]
[1755790874715,2.79,183.4,183.29,2.82]
[1755790874908,2.79,183.37,183.26,5.4573]
[1755790875503,2.79,183.37,183.23,2.82]
[1755790875709,2.79,183.37,183.25,4.92317931]
[1755790876115,2.79,183.37,183.27,2.82]
[1755790878314,2.79,183.37,183.28,5.4567]
[1755790878705,2.79,183.37,183.27,2.82]
[1755790878914,2.79,183.37,183.27,8.2769]
[1755790879305,2.79,183.37,183.27,2.82]
[1755790880513,2.79,183.37,183.29,5.4564]
[1755790881217,7.71317931,183.41,183.3,8.2759]
[1755790881519,7.71317931,183.41,183.31,5.4556]
[1755790882417,7.71317931,183.41,183.3,8.276]
[1755790882820,7.71317931,183.41,183.3,2.82]
[1755790883007,7.71317931,183.41,183.32,5.4553]
[1755790883206,2.97,183.4,183.3,2.82]
[1755790886432,3.00022311,183.37,183.3,2.82]
[1755790886920,3.00022311,183.35,183.26,3.02]
[1755790887920,3.00022311,183.35,183.26,8.4771]
[1755790888116,3.00022311,183.35,183.26,3.02]
[1755790888515,3.00022311,183.35,183.27,5.4569]
[1755790888820,3.00022311,183.35,183.26,3.02]
[1755790889023,2.97,183.42,183.29,3.02]
[1755790889228,3.00022311,183.4,183.3,3.00022311]
[1755790889726,3.00022311,183.38,183.29,3.02]
[1755790889922,3.00022311,183.36,183.29,3.02]
[1755790890625,3.00022311,183.36,183.26,6.02022311]
[1755790890823,3.00022311,183.34,183.26,3.02]
[1755790891027,8.9852159,183.42,183.22,9.1206147]
[1755790891224,3.00022311,183.3,183.22,3.02]
[1755790891724,3.00022311,183.28,183.22,3.02]
[1755790892727,3.00022311,183.26,183.19,12.42669]
[1755790893226,5.97022311,183.28,183.2,3.02]
[1755790894325,5.97022311,183.28,183.2,8.4789]
[1755790894718,5.97022311,183.28,183.2,3.02]
[1755790895031,5.97022311,183.32,183.22,3.00022311]
[1755790895224,5.97022311,183.32,183.23,3.02]
[1755790895527,5.97022311,183.32,183.23,8.4781]
[1755790895726,5.97022311,183.32,183.23,3.02]
[1755790895926,5.97022311,183.32,183.25,5.4574]
[1755790896120,5.97022311,183.32,183.23,3.02]
[1755790897824,5.97022311,183.32,183.25,5.4575]
[1755790898125,2.97,183.32,183.25,3.00022311]
[1755790898330,2.97,183.32,183.26,5.4572]
[1755790899225,2.97,183.32,183.25,8.45772311]
[1755790900332,2.97,183.32,183.25,3.00022311]
[1755790900534,2.97,183.32,183.23,6.02022311]
[1755790901525,2.97,183.36,183.27,3.00022311]
[1755790901733,2.97,183.36,183.27,6.02022311]
[1755790901929,2.97,183.36,183.29,3.00022311]
[1755790902124,2.97,183.36,183.3,3.02]
[1755790902434,5.97022311,183.4,183.32,5.4554]
[1755790902625,2.97,183.4,183.32,5.4554]
[1755790903428,2.97,183.4,183.31,3.00022311]
[1755790903629,3.00022311,183.42,183.33,3.02]
[1755790903935,372.46499279,183.48,183.33,6.02022311]
[1755790903936,5.97022311,183.44,183.33,6.02022311]
[1755790904332,2.97,183.44,183.33,3.02]
[1755790904535,2.97,183.44,183.35,5.4546]
[1755790904740,2.97,183.44,183.36,3.02]
[1755790906533,2.97,183.44,183.36,8.4743]
[1755790909538,4.88534402,183.5,183.36,8.4743]
[1755790909731,4.88534402,183.5,183.37,3.02]
[1755790909732,2.97,183.49,183.37,3.02]
[1755790910134,2.97,183.49,183.37,8.474]
[1755790910330,2.97,183.49,183.38,4.88534402]
[1755790910534,2.97,183.49,183.4,5.4531]
[1755790910740,2.97,183.49,183.39,3.02]
[1755790911139,2.97,183.49,183.42,3.02]
[1755790912241,2.97,183.53,183.42,3.02]
[1755790913244,2.97,183.53,183.42,8.4723]
[1755790913545,2.97,183.53,183.42,3.02]
[1755790913843,2.97,183.53,183.42,8.4723]
[1755790914145,2.97,183.53,183.42,3.02]
[1755790914345,2.97,183.53,183.42,8.4725]
[1755790914745,2.97,183.53,183.42,3.02]
[1755790915154,2.97,183.53,183.43,5.4522]
[1755790915447,2.97,183.53,183.42,3.02]
[1755790915648,2.97,183.53,183.44,5.4519]
[1755790915844,2.97,183.53,183.45,2.87]
[1755790917845,2.97,183.53,183.44,4.88534402]
[1755790918053,2.97,183.53,183.42,8.3223]
[1755790918454,2.97,183.53,183.43,8.3222]
[1755790918953,2.97,183.53,183.43,2.87]
[1755790919144,2.97,183.53,183.45,2.87]
[1755790920647,2.97,183.53,183.41,4.88534402]
[1755790920648,2.97,183.53,183.41,7.75534402]
[1755790921050,4.88534402,183.51,183.41,2.87]
[1755790921256,2.93,183.5,183.41,2.87]
[1755790921845,2.93,183.5,183.41,8.3226]
[1755790922045,2.93,183.5,183.41,2.87]
[1755790924661,2.93,183.54,183.41,2.87]
[1755790924949,2.93,183.54,183.43,2.87]
[1755790925753,2.93,183.54,183.45,5.4515]
[1755790926458,2.93,183.54,183.47,5.451]
[1755790926756,2.93,183.54,183.45,2.87]
[1755790928256,2.93,183.52,183.45,2.87]
[1755790928958,125.15224494,183.55,183.45,2.87]
[1755790929156,128.08224494,183.55,183.46,2.99465026]
[1755790929349,128.08224494,183.55,183.47,5.4508]
[1755790929750,128.08224494,183.55,183.46,2.99465026]
[1755790930057,125.08759468,183.55,183.49,5.4505]
[1755790930359,122.15759468,183.55,183.49,2.87]
[1755790931258,125.15224494,183.55,183.46,5.4511]
[1755790931453,122.15759468,183.55,183.47,2.99465026]
[1755790931659,122.15759468,183.55,183.48,2.87]
[1755790932059,2.93,183.61,183.51,2.99465026]
[1755790932261,5.92465026,183.61,183.51,8.44445026]
[1755790932460,5.92465026,183.61,183.51,5.4498]
[1755790933262,2.93,183.58,183.5,2.87]
[1755790933860,2.93,183.58,183.52,5.4495]
[1755790934059,2.93,183.58,183.5,5.86465026]
[1755790934261,2.93,183.58,183.5,8.3199]
[1755790934458,2.93,183.58,183.5,2.87]
[1755790934766,2.99465026,183.57,183.5,2.87]
[1755790934966,2.99465026,183.52,183.41,12.3848]
[1755790935161,2.99465026,183.52,183.42,2.87]
[1755790935666,2.93,183.53,183.41,15.37945026]
[1755790935667,2.93,183.53,183.44,2.87]
[1755790936464,2.93,183.53,183.45,5.4515]
[1755790936966,2.93,183.53,183.46,5.4513]
[1755790937364,2.93,183.53,183.44,2.87]
[1755790937565,2.93,183.53,183.45,5.4514]
[1755790937971,2.99465026,183.55,183.46,2.87]
[1755790938269,2.93,183.54,183.46,2.87]
[1755790939472,2.99465026,183.53,183.46,2.87]
[1755790939867,5.92465026,183.54,183.46,2.87]
[1755790941264,2.93,183.54,183.47,2.99465026]
[1755790941472,2.93,183.58,183.49,2.99465026]
[1755790942370,2.93,183.58,183.51,5.4497]
[1755790942568,2.93,183.58,183.5,2.87]
[1755790942862,2.93,183.58,183.51,5.4496]
[1755790944571,5.92465026,183.58,183.5,2.87]
[1755790945162,5.92465026,183.58,183.47,2.86]
[1755790946168,5.92465026,183.58,183.49,5.4504]
[1755790946774,5.92465026,183.58,183.5,5.4501]
[1755790946964,5.92465026,183.58,183.47,2.86]
[1755790947475,5.92465026,183.58,183.42,2.99465026]
[1755790947476,2.93,183.58,183.49,2.86]
[1755790948467,2.99465026,183.61,183.51,2.86]
[1755790948672,2.99465026,183.61,183.53,5.4491]
[1755790948875,2.99465026,183.61,183.51,2.86]
[1755790949372,2.99465026,183.59,183.52,5.4495]
[1755790949873,2.99465026,183.59,183.51,2.86]
[1755790950068,2.93,183.58,183.48,2.99465026]
[1755790950572,2.99465026,183.55,183.47,2.86]
[1755790950773,2.93,183.56,183.47,2.86]
[1755790951073,2.93,183.56,183.5,5.4501]
[1755790951374,2.93,183.56,183.47,2.86]
[1755790952681,2.93,183.56,183.5,5.4499]
[1755790952873,2.93,183.56,183.47,2.86]
[1755790953677,2.93,183.56,183.48,5.4507]
[1755790953871,2.93,183.53,183.43,2.86]
[1755790954078,2.99465026,183.5,183.43,2.86]
[1755790954277,2.99465026,183.5,183.44,5.4518]
[1755790954584,5.92465026,183.5,183.43,2.86]
[1755790954779,2.99465026,183.48,183.41,384.0374]
[1755790954978,2.99465026,183.48,183.41,378.5848]
[1755790955282,2.99465026,183.48,183.42,2.86]
[1755790955880,2.93,183.5,183.46,5.4513]
[1755790956077,2.93,183.5,183.42,5.85465026]
[1755790956484,2.93,183.5,183.45,5.4516]
[1755790956786,2.93,183.5,183.45,2.86]
[1755790957187,2.93,183.5,183.42,2.99465026]
[1755790957375,2.93,183.5,183.43,2.86]
[1755790957884,2.93,183.5,183.45,5.4514]
[1755790958185,2.93,183.5,183.45,8.3114]
[1755790958887,2.93,183.5,183.46,5.4513]
[1755790959487,2.93,183.54,183.45,5.85465026]
[1755790959685,2.93,183.54,183.48,5.4505]
[1755790960385,2.93,183.54,183.47,5.451]
[1755790960587,2.93,183.54,183.45,5.85465026]
[1755790960987,5.92465026,183.54,183.45,5.85465026]
[1755790961389,5.92465026,183.54,183.45,2.86]
[1755790961390,2.93,183.53,183.45,2.86]
[1755790961890,2.93,183.53,183.45,5.85465026]
[1755790962682,5.92465026,183.57,183.45,2.99465026]
[1755790962888,5.92465026,183.57,183.47,2.99465026]
[1755790963089,5.92465026,183.57,183.49,5.4503]
[1755790963288,5.92465026,183.57,183.47,2.99465026]
[1755790963787,5.92465026,183.57,183.49,5.4504]
[1755790963978,5.92465026,183.57,183.47,2.99465026]
[1755790964490,5.92465026,183.57,183.49,2.86]
[1755790964690,2.93,183.57,183.49,2.86]
[1755790965092,2.93,183.57,183.5,5.4501]
[1755790965391,2.93,183.57,183.49,2.86]
[1755790965689,2.93,183.57,183.51,5.4498]
[1755790967286,2.93,183.57,183.5,5.45]
[1755790967990,2.93,183.57,183.51,5.4498]
[1755790968184,2.93,183.57,183.49,2.86]
[1755790968384,372.20499279,183.64,183.53,5.449]
[1755790968385,5.92465026,183.63,183.53,5.449]
[1755790968591,2.93,183.62,183.52,2.99465026]
[1755790969292,2.93,183.62,183.55,5.4486]
[1755790969592,2.93,183.62,183.52,2.99465026]
[1755790969890,2.99465026,183.61,183.5,2.99465026]
[1755790970090,2.93,183.6,183.5,2.99465026]
[1755790970590,2.93,183.6,183.51,2.86]
[1755790970784,2.93,183.6,183.53,5.4492]
[1755790970985,2.93,183.6,183.51,2.86]
[1755790972094,2.93,183.6,183.52,5.4495]
[1755790972393,2.93,183.6,183.51,2.86]
[1755790972589,2.93,183.6,183.52,5.4494]
[1755790973890,2.93,183.6,183.51,2.86]
[1755790973891,2.93,183.6,183.51,8.3097]
[1755790974292,3.02,183.58,183.49,2.99465026]
[1755790974892,3.02,183.58,183.52,5.4495]
[1755790975094,3.02,183.58,183.49,2.99465026]
[1755790975792,3.02,183.58,183.51,5.4498]
[1755790976594,3.02,183.58,183.52,5.4494]
[1755790977293,3.02,183.57,183.53,5.4492]
[1755790977486,3.02,183.57,183.51,3.06]
[1755790977694,3.02,183.57,183.52,5.4493]
[1755790977892,2.99465026,183.59,183.49,2.99465026]
[1755790978088,2.99465026,183.59,183.5,3.06]
[1755790978293,2.99465026,183.59,183.53,5.4491]
[1755790978589,2.99465026,183.59,183.5,3.06]
[1755790978590,3.02,183.6,183.5,3.06]
[1755790978792,3.02,183.6,183.54,5.4489]
[1755790978990,3.02,183.6,183.52,3.06]
[1755790979191,3.02,183.6,183.47,6.1006147]
[1755790979192,3.02,183.6,183.54,3.06]
[1755790979495,3.02,183.64,183.54,3.06]
[1755790979697,3.02,183.64,183.56,3.06]
[1755790979886,3.02,183.64,183.59,5.4473]
[1755790980087,3.02,183.64,183.56,3.06]
[1755790980088,3.02,183.63,183.56,3.06]
[1755790980291,3.02,183.63,183.57,2.99465026]
[1755790980501,3.02,183.66,183.58,3.06]
[1755790980797,3.02,183.66,183.59,2.99465026]
[1755790980997,120.00442918,183.67,183.6,3.06]
[1755790981496,120.00442918,183.67,183.65,5.4455]
[1755790981899,120.00442918,183.67,183.65,8.5055]
[1755790982095,2.99465026,183.72,183.66,5.4454]
[1755790982296,6.01465026,183.74,183.65,3.06]
[1755790982497,3.02,183.71,183.63,2.99465026]
[1755790982800,3.02,183.7,183.63,2.99465026]
[1755790982994,2.99465026,183.72,183.64,3.06]
[1755790983700,3.02,183.73,183.64,3.06]
[1755790984401,2.99465026,183.72,183.64,3.06]
[1755790984799,3.02,183.73,183.64,3.06]
[1755790985595,3.02,183.73,183.66,5.4453]
[1755790987002,3.02,183.73,183.67,5.445]
[1755790987498,0.94757049,183.77,183.67,5.445]
[1755790987703,2.99465026,183.75,183.63,3.06]
[1755790987903,3.02,183.74,183.63,3.06]
[1755790988104,2.99465026,183.73,183.66,5.4454]
[1755790988293,2.99465026,183.73,183.63,3.06]
[1755790988898,2.99465026,183.73,183.65,5.4454]
[1755790989505,0.94757049,183.77,183.62,5.4465]
[1755790989506,3.02,183.69,183.62,5.4465]
[1755790989699,3.02,183.69,183.59,3.06]
[1755790990202,2.99465026,183.68,183.59,3.06]
[1755790990403,3.02,183.69,183.53,149.0984]
[1755790990404,2.99465026,183.63,183.53,3.06]
[1755790990598,3.02,183.62,183.53,6.05465026]
[1755790990797,3.02,183.62,183.53,3.06]
[1755790991195,3.02,183.62,183.54,5.4487]
[1755790991398,3.02,183.62,183.53,3.06]
[1755790991608,3.02,183.62,183.53,6.05465026]
[1755790992301,3.02,183.62,183.53,3.06]
[1755790992502,3.02,183.62,183.53,6.05465026]
[1755790992899,3.02,183.62,183.58,5.4477]
[1755790993605,6.01465026,183.64,183.59,5.4474]
[1755790994002,3.02,183.63,183.59,5.4474]
[1755790994203,2.99465026,183.64,183.58,5.4477]
[1755790994204,6.01465026,183.64,183.58,5.4477]
[1755790994606,6.01465026,183.64,183.56,3.06]
[1755790994905,6.01465026,183.64,183.59,5.4473]
[1755790995109,2.99465026,183.64,183.59,5.4473]